bitfinex/quotes_SOLUSD_20220128
["timestamp","ask_amount","ask_price","bid_price","bid_amount"]
[1643372487665,0.25,88.578,88.485,24.6625]
[1643372487867,16.96,88.57,88.485,24.6625]
[1643372488267,3.20669142,88.569,88.485,24.6625]
[1643372488666,2.95669142,88.568,88.485,24.6625]
[1643372488872,0.25,88.567,88.485,24.6625]
[1643372489069,0.25,88.567,88.486,0.25]
[1643372489268,0.25,88.567,88.486,24.4049]
[1643372489967,0.25,88.578,88.486,24.1549]
[1643372490268,0.25,88.578,88.487,0.25]
[1643372490670,0.25,88.578,88.497,40.28855848]
[1643372490869,113.15,88.623,88.5,13.58]
[1643372491069,2.95669142,88.612,88.5,13.58]
[1643372491269,17.97752106,88.609,88.501,0.25]
[1643372491471,112.9,88.608,88.5,13.58]
[1643372491668,31.52557145,88.607,88.5,13.58]
[1643372491870,49.50309251,88.607,88.5,13.58]
[1643372492670,31.52557145,88.607,88.5,13.58]
[1643372492869,31.52557145,88.607,88.501,0.25]
[1643372493276,3.20669142,88.606,88.501,0.25]
[1643372493471,3.20669142,88.606,88.502,2.0808082]
[1643372493699,0.25,88.606,88.502,2.0808082]
[1643372494002,2.95669142,88.617,88.503,0.25]
[1643372494202,16.949,88.63,88.513,112.9]
[1643372494399,2.95669142,88.638,88.52,13.58]
[1643372494599,2.95669142,88.638,88.53,6.0]
[1643372494800,2.95669142,88.638,88.531,24.1456]
[1643372494999,30.99353197,88.628,88.532,40.15208151]
[1643372495200,30.99353197,88.628,88.532,42.23288971]
[1643372495399,0.25,88.627,88.542,6.0]
[1643372495799,30.99353197,88.628,88.542,6.0]
[1643372496202,28.55605593,88.657,88.543,24.5614]
[1643372496499,17.97752106,88.657,88.543,24.8114]
[1643372496704,17.97752106,88.657,88.544,24.5292]
[1643372496900,17.97752106,88.657,88.545,0.25]
[1643372497109,16.943,88.65,88.545,0.25]
[1643372497300,16.943,88.65,88.554,6.0]
[1643372497499,16.943,88.65,88.555,40.28855848]
[1643372497801,0.25,88.649,88.555,40.53855848]
[1643372498001,0.25,88.649,88.565,6.0]
[1643372498400,0.25,88.649,88.566,6.0]
[1643372498600,35.10021055,88.656,88.566,6.25]
[1643372498801,35.10021055,88.656,88.567,23.9024]
[1643372499203,2.95669142,88.655,88.567,23.9024]
[1643372499603,35.10021055,88.656,88.567,23.9024]
[1643372499802,0.25,88.655,88.567,23.9024]
[1643372500003,16.944,88.65,88.567,23.9024]
[1643372500403,0.25,88.649,88.567,23.9024]
[1643372500601,16.944,88.65,88.567,23.9024]
[1643372502007,0.25,88.649,88.567,23.9024]
[1643372502406,0.25,88.655,88.568,0.25]
[1643372503503,0.25,88.655,88.577,6.0]
[1643372503705,0.25,88.655,88.579,36.01953413]
[1643372504107,0.25,88.655,88.578,24.753]
[1643372504307,0.25,88.655,88.55,13.58]
[1643372504505,0.25,88.655,88.56,6.0]
[1643372504705,0.25,88.655,88.551,22.8978]
[1643372504908,2.95669142,88.654,88.551,22.8978]
[1643372505109,16.943,88.65,88.552,38.95650244]
[1643372505307,0.25,88.649,88.553,0.25]
[1643372505507,0.25,88.649,88.552,38.95650244]
[1643372505907,0.25,88.649,88.553,0.25]
[1643372506307,0.25,88.654,88.562,6.0]
[1643372506507,2.95669142,88.648,88.563,24.9719]
[1643372506910,0.25,88.647,88.563,24.9719]
[1643372507507,16.945,88.64,88.563,24.9719]
[1643372507707,3.63914946,88.639,88.563,24.9719]
[1643372507910,3.88914946,88.639,88.563,24.9719]
[1643372508609,3.88914946,88.639,88.552,38.95650244]
[1643372508908,16.947,88.63,88.552,38.95650244]
[1643372509209,2.95669142,88.629,88.552,38.95650244]
[1643372509510,2.95669142,88.629,88.523,23.8724]
[1643372509511,3.20669142,88.629,88.523,23.8724]
[1643372509908,2.95669142,88.628,88.523,23.8724]
[1643372510110,16.949,88.62,88.501,1.52794582]
[1643372510310,0.25,88.619,88.501,1.52794582]
[1643372510510,56.519,88.61,88.502,36.75091822]
[1643372511012,0.25,88.609,88.502,36.75091822]
[1643372511210,26.66029142,88.609,88.502,36.75091822]
[1643372511413,2.95669142,88.608,88.502,36.75091822]
[1643372511610,115.85669142,88.608,88.502,36.75091822]
[1643372511810,0.25,88.607,88.503,25.14379843]
[1643372512212,0.25,88.607,88.503,23.0686]
[1643372514312,4.22001106,88.605,88.503,23.0686]
[1643372514711,3.20669142,88.604,88.503,23.0686]
[1643372515111,2.95669142,88.603,88.495,26.03124582]
[1643372515311,13.58,88.6,88.489,1.52794582]
[1643372515512,13.58,88.6,88.482,1.52794582]
[1643372515812,31.11333797,88.599,88.479,1.52794582]
[1643372516011,49.09085903,88.599,88.479,1.52794582]
[1643372516211,62.10352972,88.598,88.479,1.52794582]
[1643372516411,62.10352972,88.598,88.471,23.6911]
[1643372516412,0.25,88.597,88.476,1.52794582]
[1643372516611,1.53466553,88.59,88.462,1.52794582]
[1643372516811,1.53466553,88.59,88.416,47.7364]
[1643372516812,13.58,88.58,88.457,1.52794582]
[1643372517015,48.9461,88.579,88.455,1.52794582]
[1643372517214,29.46241363,88.578,88.455,1.52794582]
[1643372517417,0.25,88.577,88.449,1.52794582]
[1643372517613,0.25,88.577,88.451,1.52794582]
[1643372517813,10.73832931,88.577,88.449,35.43812267]
[1643372518015,16.967,88.55,88.449,35.43812267]
[1643372518215,57.72144638,88.549,88.449,35.43812267]
[1643372518415,112.9,88.548,88.445,1.52794582]
[1643372518816,0.25,88.547,88.444,1.52794582]
[1643372519017,3.20669142,88.547,88.443,1.52794582]
[1643372519219,16.967,88.53,88.443,1.52794582]
[1643372519523,29.46241363,88.528,88.442,1.52794582]
[1643372519719,112.9,88.527,88.439,1.52794582]
[1643372519944,113.15,88.527,88.439,1.52794582]
[1643372520121,112.9,88.527,88.439,1.52794582]
[1643372520419,29.46241363,88.528,88.438,25.34984582]
[1643372520622,29.46241363,88.528,88.443,1.52794582]
[1643372521221,29.46241363,88.528,88.441,1.52794582]
[1643372521422,29.46241363,88.528,88.44,1.52794582]
[1643372521623,29.46241363,88.528,88.444,2.07519843]
[1643372521823,0.25,88.527,88.445,0.25]
[1643372522028,0.25,88.527,88.452,38.89698135]
[1643372522628,0.25,88.527,88.449,1.52794582]
[1643372522827,0.25,88.527,88.443,1.52794582]
[1643372523029,0.25,88.527,88.432,1.52794582]
[1643372523428,0.25,88.527,88.428,1.52794582]
[1643372523429,24.0639,88.527,88.428,1.52794582]
[1643372523630,2.95669142,88.526,88.428,1.52794582]
[1643372523834,16.968,88.52,88.413,1.52794582]
[1643372524039,30.548,88.52,88.413,1.52794582]
[1643372524236,3.20669142,88.519,88.41,0.04470369]
[1643372524433,14.7761874,88.519,88.41,0.04470369]
[1643372524633,14.5261874,88.518,88.41,0.04470369]
[1643372524833,9.27694638,88.509,88.41,0.04470369]
[1643372525032,24.3499,88.508,88.41,0.04470369]
[1643372525234,27.55659142,88.508,88.41,0.04470369]
[1643372525432,37.02659142,88.508,88.41,0.04470369]
[1643372525632,14.5261874,88.507,88.41,0.04470369]
[1643372525832,0.25,88.506,88.386,1.52794582]
[1643372526034,51.1535257,88.506,88.366,1.52794582]
[1643372526231,14.7761874,88.506,88.366,1.52794582]
[1643372526437,50.9035257,88.505,88.356,1.52794582]
[1643372526634,50.9035257,88.505,88.345,47.1397]
[1643372526635,29.41770993,88.489,88.353,1.52794582]
[1643372526837,0.25,88.488,88.352,1.52794582]
[1643372527034,14.7761874,88.488,88.352,1.52794582]
[1643372527239,33.73520846,88.488,88.352,1.52794582]
[1643372527462,112.9,88.486,88.353,1.52794582]
[1643372527658,112.9,88.486,88.348,42.82908277]
[1643372527860,2.95669142,88.485,88.349,0.25]
[1643372528059,16.984,88.44,88.349,2.07519843]
[1643372528259,13.58,88.46,88.349,2.07519843]
[1643372528459,2.95669142,88.439,88.33,1.52794582]
[1643372528660,2.95669142,88.439,88.32,63.2654]
[1643372528861,2.95669142,88.462,88.331,2.07519843]
[1643372529060,13.58,88.47,88.345,46.01947166]
[1643372529260,16.98,88.46,88.345,46.01947166]
[1643372529459,16.98,88.46,88.346,22.7106]
[1643372529863,16.98,88.46,88.347,0.25]
[1643372530060,0.25,88.459,88.346,22.7106]
[1643372530263,16.988,88.43,88.346,22.7106]
[1643372530461,28.08600926,88.429,88.346,22.7106]
[1643372530663,112.9,88.428,88.32,38.4578]
[1643372530860,0.25,88.427,88.32,24.8778]
[1643372531468,16.99,88.41,88.32,24.8778]
[1643372531666,10.60864705,88.409,88.317,23.2874]
[1643372531866,10.85864705,88.409,88.317,23.2874]
[1643372532468,16.996,88.39,88.28,13.58]
[1643372532666,56.652,88.4,88.27,1.52794582]
[1643372532667,112.9,88.389,88.27,1.52794582]
[1643372532864,113.15,88.389,88.27,1.52794582]
[1643372533066,0.25,88.389,88.27,1.52794582]
[1643372533266,13.58,88.4,88.271,18.01093804]
[1643372533466,16.992,88.4,88.28,13.58]
[1643372533665,10.60864705,88.409,88.28,13.58]
[1643372533865,10.60864705,88.409,88.291,33.07430912]
[1643372534065,10.60864705,88.409,88.292,23.7088]
[1643372534266,10.60864705,88.409,88.293,0.25]
[1643372534468,0.25,88.408,88.293,18.85119557]
[1643372534867,0.25,88.408,88.29,19.58]
[1643372534868,16.994,88.39,88.29,4.80627505]
[1643372535072,30.574,88.39,88.272,16.78120055]
[1643372535271,84.26594416,88.389,88.266,24.8767]
[1643372535469,84.26594416,88.389,88.225,23.2393]
[1643372535669,60.80774416,88.388,88.226,47.8372]
[1643372535869,60.80774416,88.388,88.24,16.999]
[1643372535870,17.006,88.38,88.24,16.999]
[1643372536068,13.58,88.37,88.227,43.82174326]
[1643372536271,10.85864705,88.369,88.227,43.82174326]
[1643372536469,112.9,88.368,88.227,43.82174326]
[1643372536670,126.39634464,88.368,88.237,6.0]
[1643372536870,74.5253229,88.367,88.237,6.0]
[1643372537171,23.05583148,88.366,88.227,43.82174326]
[1643372537372,17.001,88.36,88.227,43.82174326]
[1643372537574,13.58,88.35,88.227,43.82174326]
[1643372537770,2.53108376,88.348,88.227,43.82174326]
[1643372537969,112.9,88.347,88.227,43.82174326]
[1643372538174,113.15,88.347,88.227,43.82174326]
[1643372538383,21.29829884,88.346,88.227,43.82174326]
[1643372538571,60.80716638,88.346,88.227,43.82174326]
[1643372538776,0.25,88.345,88.227,43.82174326]
[1643372538974,13.58,88.33,88.227,43.82174326]
[1643372539171,9.78297356,88.329,88.227,43.82174326]
[1643372539370,10.03297356,88.329,88.227,43.82174326]
[1643372539570,17.006,88.32,88.227,43.82174326]
[1643372539771,0.25,88.319,88.227,43.82174326]
[1643372539974,13.58,88.31,88.17,13.58]
[1643372540175,13.58,88.31,88.16,13.58]
[1643372540374,13.74634464,88.309,88.16,13.58]
[1643372540573,16.70303606,88.309,88.15,13.58]
[1643372540773,64.28896754,88.308,88.15,13.58]
[1643372540974,0.30034099,88.284,88.152,41.6508781]
[1643372541178,13.58,88.27,88.132,24.7163]
[1643372541374,0.25,88.269,88.132,24.7163]
[1643372541774,24.50499026,88.269,88.132,24.7163]
[1643372541973,16.45303606,88.268,88.12,13.58]
[1643372542175,9.73120039,88.267,88.121,36.0822724]
[1643372542374,47.73253529,88.267,88.121,36.0822724]
[1643372542574,13.49634464,88.266,88.121,36.0822724]
[1643372542777,37.7513349,88.266,88.121,36.0822724]
[1643372542974,17.023,88.26,88.121,36.0822724]
[1643372543176,30.603,88.26,88.137,2.0708236]
[1643372543573,30.603,88.26,88.138,46.08729922]
[1643372543775,30.603,88.26,88.14,13.58]
[1643372543776,17.023,88.26,88.14,13.58]
[1643372544174,17.023,88.26,88.141,0.25]
[1643372544375,17.023,88.24,88.138,46.08729922]
[1643372544574,3.40853042,88.239,88.138,46.08729922]
[1643372544975,0.25,88.238,88.11,13.58]
[1643372545174,0.25,88.238,88.077,74.6573]
[1643372545175,3.20669142,88.238,88.078,135.4215]
[1643372545377,2.95669142,88.237,88.172,0.00482436]
[1643372545579,13.58,88.23,88.172,0.00482436]
[1643372545778,17.026,88.22,88.172,0.00482436]
[1643372545979,13.58,88.21,88.172,0.00482436]
[1643372546379,13.58,88.21,88.028,1.52794582]
[1643372546380,75.0,88.208,88.02,13.58]
[1643372546579,0.30884251,88.173,87.99,13.58]
[1643372546778,75.0,88.17,87.936,199.33748348]
[1643372546983,17.045,88.15,87.942,112.9]
[1643372547182,183.28,88.14,87.996,3.0]
[1643372547384,169.7,88.13,87.95,17.047]
[1643372547581,0.25,88.139,87.936,199.33748348]
[1643372547582,0.3188122,88.096,87.943,36.50309974]
[1643372547785,0.25,88.109,87.943,36.50309974]
[1643372547987,23.71177773,88.095,87.943,36.50309974]
[1643372548183,17.056,88.09,87.943,36.30309974]
[1643372548383,13.58,88.08,87.943,36.30309974]
[1643372548584,13.58,88.08,87.944,2.0708236]
[1643372548783,0.25,88.079,87.944,2.0708236]
[1643372548984,0.25,88.079,87.943,36.30309974]
[1643372549185,17.061,88.06,87.943,36.30309974]
[1643372549384,13.58,88.06,87.943,35.84626314]
[1643372549791,1.53466553,88.225,87.954,75.0]
[1643372549990,112.9,88.141,87.986,0.30703951]
[1643372550184,112.9,88.141,87.977,35.1680867]
[1643372550385,115.85669142,88.139,87.977,35.1680867]
[1643372550588,29.9581875,88.175,87.977,35.1680867]
[1643372550589,69.9599,88.174,87.987,8.0708236]
[1643372550787,56.813,88.17,88.007,0.30497913]
[1643372550985,56.813,88.17,88.01,13.58]
[1643372551186,56.813,88.17,88.011,36.04410659]
[1643372551385,56.813,88.17,88.02,6.0]
[1643372551587,56.813,88.17,88.031,47.18631094]
[1643372551885,56.813,88.17,88.04,13.58]
[1643372552286,13.58,88.19,88.051,37.62083229]
[1643372552486,13.58,88.19,88.051,24.62083229]
[1643372552686,2.95669142,88.169,88.05,6.0]
[1643372552887,13.58,88.16,87.99,13.58]
[1643372553087,13.58,88.16,87.98,47.6789]
[1643372553292,3.20669142,88.159,87.98,47.6789]
[1643372553486,51.19505017,88.159,87.98,47.6789]
[1643372553710,112.9,88.157,87.97,13.58]
[1643372553913,17.048,88.13,87.947,78.235]
[1643372554114,13.58,88.12,87.92,13.58]
[1643372554311,0.31011148,88.108,87.891,78.235]
[1643372554511,13.58,88.1,87.91,13.58]
[1643372554713,112.9,88.099,87.911,47.38905682]
[1643372554911,17.065,88.07,87.921,2.0651628]
[1643372555111,0.25,88.098,87.94,13.58]
[1643372555311,0.25,88.098,87.941,36.48782276]
[1643372555312,0.25,88.069,87.941,36.48782276]
[1643372555514,0.25,88.069,87.942,24.6356]
[1643372555914,2.95669142,88.068,87.941,36.48782276]
[1643372556315,0.25,88.067,87.941,36.48782276]
[1643372556516,17.061,88.06,87.941,36.48782276]
[1643372556914,3.20669142,88.059,87.941,36.48782276]
[1643372557314,2.95669142,88.058,87.941,36.48782276]
[1643372557518,17.065,88.04,87.89,0.35]
[1643372557914,0.25,88.039,87.89,13.93]
[1643372558317,0.25,88.039,87.914,2.07943302]
[1643372558514,18.83027773,88.075,87.915,45.70080309]
[1643372558717,2.95669142,88.07,87.915,45.70080309]
[1643372559016,17.063,88.05,87.915,45.45080309]
[1643372559417,72.82382579,88.049,87.915,45.45080309]
[1643372559817,41.50463472,88.048,87.915,45.45080309]
[1643372560215,22.25827063,88.047,87.915,45.45080309]
[1643372560417,42.85727058,88.047,87.915,45.45080309]
[1643372560622,1.53466553,88.199,87.957,0.30628143]
[1643372560818,188.9455,88.138,87.959,39.76435046]
[1643372561019,13.58,88.18,88.002,0.30543641]
[1643372561216,69.9696,88.181,88.011,43.25723958]
[1643372561516,78.6775,88.22,88.021,6.0]
[1643372561721,19.1112944,88.207,88.03,13.58]
[1643372561921,19.1112944,88.207,88.031,36.11582395]
[1643372562119,19.1112944,88.207,88.041,6.0]
[1643372562320,19.1112944,88.207,88.05,13.58]
[1643372562517,19.1112944,88.225,88.06,6.0]
[1643372562720,19.1112944,88.22,88.07,13.58]
[1643372562918,17.036,88.2,88.033,24.8416]
[1643372563319,19.1112944,88.199,88.033,24.8416]
[1643372563521,31.68507367,88.199,88.033,24.8416]
[1643372563718,28.72838225,88.199,88.033,24.8416]
[1643372563918,9.86708785,88.198,88.034,43.59076019]
[1643372564119,17.04,88.18,88.034,43.59076019]
[1643372564320,0.25,88.179,88.035,0.25]
[1643372565022,0.25,88.179,88.044,6.0]
[1643372565221,0.25,88.179,88.051,35.23064204]
[1643372565621,0.25,88.189,88.061,6.0]
[1643372565920,0.25,88.189,88.071,44.47044659]
[1643372566123,23.4454,88.218,88.071,44.47044659]
[1643372566124,0.25,88.196,88.071,44.47044659]
[1643372566323,0.25,88.214,88.081,6.0]
[1643372566522,0.25,88.214,88.09,13.58]
[1643372566723,19.1112944,88.195,88.038,2.10091009]
[1643372566922,19.1112944,88.195,88.0,13.58]
[1643372567122,13.58,88.19,87.982,78.7769]
[1643372567323,13.58,88.19,88.01,13.58]
[1643372567623,28.72838225,88.189,88.03,13.58]
[1643372567823,17.043,88.16,88.03,13.58]
[1643372568225,0.25,88.159,88.03,13.58]
[1643372568424,19.3612944,88.159,88.03,13.58]
[1643372568629,19.1112944,88.158,88.026,39.68374583]
[1643372568825,0.25,88.157,88.026,39.68374583]
[1643372569023,17.047,88.14,88.026,39.68374583]
[1643372569424,0.25,88.139,88.026,39.68374583]
[1643372569824,17.047,88.14,88.027,0.25]
[1643372570626,17.047,88.14,88.026,39.68374583]
[1643372570827,17.047,88.14,88.03,13.58]
[1643372571228,0.25,88.139,88.03,13.58]
[1643372572629,0.25,88.139,88.026,39.68374583]
[1643372572630,17.051,88.12,88.026,39.68374583]
[1643372572829,0.25,88.119,88.026,39.68374583]
[1643372573030,1.53466553,88.178,88.04,13.58]
[1643372573230,1.53466553,88.178,88.041,46.3645428]
[1643372573431,1.53466553,88.195,88.044,0.32160313]
[1643372573629,13.58,88.25,88.044,0.32160313]
[1643372573630,1.53466553,88.202,88.051,6.0]
[1643372573834,1.53466553,88.202,88.061,48.89972283]
[1643372574030,17.037,88.19,88.071,6.0]
[1643372574231,17.037,88.19,88.081,36.64740611]
[1643372575031,1.53466553,88.202,88.081,36.64740611]
[1643372575232,1.53466553,88.204,88.082,0.25]
[1643372575433,1.53466553,88.202,88.082,0.25]
[1643372575634,1.53466553,88.202,88.081,36.64740611]
[1643372575834,1.53466553,88.2,88.081,36.64740611]
[1643372576236,18.57066553,88.2,88.08,13.58]
[1643372576441,4.49135695,88.199,88.036,1.53516017]
[1643372576636,1.53466553,88.179,88.016,1.53516017]
[1643372576838,1.53466553,88.168,88.01,13.58]
[1643372577043,1.53466553,88.163,88.01,13.58]
[1643372577340,0.25,88.162,88.042,41.48945751]
[1643372577541,1.78466553,88.162,88.042,41.48945751]
[1643372577740,4.74135695,88.162,88.042,41.48945751]
[1643372577940,1.78466553,88.162,88.042,41.48945751]
[1643372578141,17.045,88.16,88.042,41.48945751]
[1643372578342,0.25,88.159,88.042,41.48945751]
[1643372578943,2.95669142,88.158,88.042,41.48945751]
[1643372579141,17.046,88.14,88.042,41.48945751]
[1643372579343,0.25,88.139,88.042,41.48945751]
[1643372579552,0.25,88.139,88.052,6.0]
[1643372579744,17.046,88.14,88.052,6.0]
[1643372580366,1.53466553,88.167,88.052,6.0]
[1643372580566,17.041,88.17,88.052,6.0]
[1643372581166,0.25,88.169,88.052,6.0]
[1643372581368,0.25,88.169,88.042,41.48945751]
[1643372581369,17.044,88.15,88.042,41.48945751]
[1643372581771,29.91238572,88.149,88.042,41.48945751]
[1643372582972,17.047,88.14,88.024,49.1496]
[1643372583271,0.25,88.139,88.024,49.1496]
[1643372583472,3.20669142,88.139,88.024,49.1496]
[1643372583672,3.20669142,88.139,87.99,38.2815]
[1643372583673,2.95669142,88.138,87.995,1.53516017]
[1643372583871,0.25,88.137,87.99,26.23666017]
[1643372584075,0.25,88.137,87.99,24.7015]
[1643372584271,2.95669142,88.136,87.989,1.53516017]
[1643372584472,17.051,88.12,87.989,1.53516017]
[1643372584871,17.051,88.12,87.98,13.58]
[1643372584872,1.53466553,88.105,87.99,40.00779203]
[1643372585070,1.53466553,88.11,87.99,40.00779203]
[1643372585271,0.25,88.104,87.99,40.00779203]
[1643372585671,17.053,88.1,87.981,69.8556]
[1643372585873,0.25,88.099,87.981,69.8556]
[1643372586072,3.20669142,88.099,87.981,69.8556]
[1643372586274,2.95669142,88.098,87.981,69.8556]
[1643372586677,0.25,88.099,87.955,1.53516017]
[1643372586678,17.057,88.08,87.96,13.58]
[1643372586875,17.057,88.08,87.931,3.01322271]
[1643372586876,0.25,88.079,87.937,69.8769]
[1643372587074,0.25,88.079,87.937,23.2745]
[1643372587377,1.53466553,88.07,87.937,23.2745]
[1643372587573,1.53466553,88.068,87.937,23.2745]
[1643372587774,17.065,88.05,87.937,23.2745]
[1643372587974,1.53466553,88.089,87.938,42.59637922]
[1643372588173,1.53466553,88.08,87.94,13.58]
[1643372588374,1.53466553,88.083,87.941,0.25]
[1643372588575,1.53466553,88.094,87.95,5.9432]
[1643372588776,1.53466553,88.093,87.951,0.25]
[1643372588979,1.53466553,88.096,87.952,37.97381009]
[1643372589179,24.4017,88.097,87.952,37.97381009]
[1643372589180,2.95669142,88.093,87.952,37.97381009]
[1643372589380,1.78466553,88.092,87.953,0.25]
[1643372589578,1.78466553,88.092,87.953,23.8441]
[1643372589780,17.059,88.08,87.953,23.8441]
[1643372590180,1.53466553,88.092,87.96,13.58]
[1643372590377,1.53466553,88.108,87.963,6.0]
[1643372590579,1.53466553,88.11,87.971,39.86923895]
[1643372590780,17.053,88.11,87.98,13.58]
[1643372590979,17.053,88.11,87.981,6.0]
[1643372591179,17.053,88.11,87.991,47.79265449]
[1643372591380,0.25,88.109,87.992,0.25]
[1643372591579,0.25,88.109,88.001,6.0]
[1643372591785,1.53466553,88.131,88.002,0.25]
[1643372591981,1.53466553,88.144,88.011,44.91290137]
[1643372592181,1.53466553,88.154,88.02,13.58]
[1643372592481,1.53466553,88.153,88.021,29.8606]
[1643372592681,1.53466553,88.155,88.031,43.92199599]
[1643372592880,1.53466553,88.158,88.04,13.58]
[1643372593081,0.25,88.154,88.05,6.0]
[1643372593281,0.25,88.159,88.051,44.7351264]
[1643372593681,1.53466553,88.166,88.061,6.0]
[1643372593882,1.53466553,88.166,88.07,13.58]
[1643372594082,1.53466553,88.173,88.08,6.0]
[1643372594284,1.53466553,88.173,88.08,13.58]
[1643372594487,1.53466553,88.176,88.08,13.58]
[1643372594683,1.53466553,88.177,88.081,0.25]
[1643372594882,1.53466553,88.181,88.091,46.96058455]
[1643372595181,3.08433951,88.206,88.091,46.96058455]
[1643372595182,1.53466553,88.195,88.101,6.0]
[1643372595383,1.53466553,88.195,88.102,0.25]
[1643372595587,1.53466553,88.196,88.1,13.58]
[1643372595785,10.15126698,88.194,88.1,13.58]
[1643372595983,11.57329287,88.194,88.1,13.58]
[1643372596188,1.53466553,88.203,88.1,13.58]
[1643372596385,1.53466553,88.2,88.1,13.58]
[1643372596586,1.53466553,88.199,88.1,13.58]
[1643372596986,1.53466553,88.192,88.1,13.58]
[1643372597687,2.95669142,88.191,88.1,13.58]
[1643372598086,1.53466553,88.191,88.1,13.58]
[1643372598288,0.25,88.19,88.1,13.58]
[1643372598713,0.25,88.197,88.1,13.58]
[1643372598888,0.25,88.2,88.1,13.58]
[1643372599290,1.53466553,88.2,88.1,13.58]
[1643372599488,2.95669142,88.199,88.1,13.58]
[1643372599687,0.25,88.199,88.1,13.58]
[1643372600088,0.25,88.199,88.101,0.25]
[1643372600490,1.53466553,88.207,88.101,0.25]
[1643372600691,1.53466553,88.207,88.101,12.22]
[1643372600888,1.53466553,88.207,88.111,35.98348796]
[1643372601089,1.53466553,88.226,88.12,13.58]
[1643372601290,1.53466553,88.235,88.121,6.25]
[1643372601489,126.48610606,88.242,88.131,39.90513683]
[1643372601690,1.53466553,88.242,88.14,13.58]
[1643372601893,0.25,88.241,88.14,13.58]
[1643372602289,0.25,88.243,88.14,13.58]
[1643372602491,1.53466553,88.242,88.14,13.58]
[1643372602690,29.6233214,88.273,88.14,13.58]
[1643372602691,1.53466553,88.249,88.14,13.58]
[1643372602989,1.53466553,88.252,88.151,44.98438812]
[1643372603192,1.53466553,88.255,88.16,13.58]
[1643372603389,29.6233214,88.273,88.16,13.58]
[1643372603390,1.53466553,88.26,88.16,13.58]
[1643372603893,1.53466553,88.262,88.171,42.71693141]
[1643372604090,1.53466553,88.274,88.18,13.58]
[1643372604290,1.53466553,88.276,88.181,6.25]
[1643372604492,1.53466553,88.276,88.181,0.25]
[1643372604690,1.53466553,88.278,88.192,43.41450571]
[1643372604890,3.10553082,88.306,88.2,13.58]
[1643372604891,1.53466553,88.282,88.2,13.58]
[1643372605092,0.25,88.277,88.2,13.58]
[1643372605291,0.25,88.283,88.2,13.58]
[1643372605691,1.53466553,88.29,88.2,13.58]
[1643372605895,1.53466553,88.296,88.201,0.25]
[1643372606094,1.53466553,88.301,88.211,44.41002464]
[1643372606293,1.53466553,88.304,88.211,44.41002464]
[1643372606494,1.53466553,88.303,88.211,44.41002464]
[1643372607097,0.25,88.302,88.211,44.41002464]
[1643372607493,20.05115281,88.301,88.21,13.58]
[1643372607694,23.00784423,88.301,88.19,13.58]
[1643372607894,1.53466553,88.283,88.19,13.58]
[1643372608102,1.53466553,88.283,88.16,13.58]
[1643372608296,1.53466553,88.278,88.16,13.58]
[1643372608495,17.018,88.27,88.161,44.78086036]
[1643372608896,0.25,88.269,88.161,44.78086036]
[1643372609894,17.019,88.26,88.161,44.78086036]
[1643372610294,0.25,88.259,88.161,44.78086036]
[1643372610794,0.25,88.259,88.162,2.10029689]
[1643372611197,0.25,88.259,88.163,0.25]
[1643372611393,17.015,88.28,88.163,0.25]
[1643372611595,1.53466553,88.294,88.172,6.0]
[1643372611794,1.53466553,88.301,88.181,46.66242615]
[1643372612094,1.53466553,88.308,88.191,6.0]
[1643372612296,1.53466553,88.316,88.192,22.9417]
[1643372612495,1.53466553,88.318,88.201,40.47426294]
[1643372612695,1.53466553,88.318,88.21,13.58]